[Event "14th Danzhou Super GM 2023"]
[Site "Danzhou"]
[Date "2023.11.16"]
[Round "2.2"]
[White "Liu, Yan"]
[Black "Tan, Zhongyi"]
[Result "1-0"]
[ECO "A13"]
[WhiteElo "2579"]
[BlackElo "2513"]
[Annotator "RC"]
[PlyCount "95"]
[EventDate "2023.11.16"]
[EventType "tourn"]
[EventCountry "CHN"]
[SourceTitle "playchess.com"]
[Source "ChessBase"]
[SourceQuality "1"]
[TimeControl "2700+10"]

1. c4 {[%emt 0:00:13]} e6 {[%emt 0:00:08]} 2. g3 {[%emt 0:00:48]} d5 {[%emt 0:00:07]} 3. Bg2 {[%emt 0:00:04]} Nf6 {[%emt 0:00:05]} 4. Nf3 {[%emt 0:00:08]} d4 {[%emt 0:00:22]} 5. d3 {[%emt 0:00:09]} Bb4+ {[%emt 0:00:03]} 6. Bd2 {[%emt 0:00:49]} Bxd2+ {[%emt 0:00:47]} 7. Nbxd2 {[%emt 0:01:21]} O-O {[%emt 0:00:04]} 8. b4 {[%emt 0:02:20]} Re8 {[%emt 0:00:24]} 9. O-O {[%emt 0:00:50]} e5 {[%emt 0:00:15]} 10. Nb3 {[%emt 0:01:24]} Qe7 {[%emt 0:02:20]} 11. Qd2 {[%emt 0:02:18]} Na6 {[%emt 0:04:30]} 12. a3 {[%emt 0:02:04]} h6 {[%emt 0:01:35]} 13. e3 {[%emt 0:02:54]} dxe3 {[%emt 0:06:22]} 14. Qxe3 {[%emt 0:00:03]} Ng4 {[%emt 0:01:12]} 15. Qe2 {[%emt 0:02:26]} c5 {[%emt 0:00:31]} 16. b5 {[%emt 0:01:06]} Nb8 {[%emt 0:00:03]} 17. Rfe1 {[%emt 0:01:42]} Nd7 {[%emt 0:00:14]} 18. Nh4 {[%emt 0:02:33]} Ngf6 {[%emt 0:00:27]} 19. Nf5 {[%emt 0:00:26]} Qf8 {[%emt 0:00:30]} 20. a4 {[%emt 0:04:46]} Rb8 {[%emt 0:00:53]} 21. a5 {[%emt 0:00:27]} g6 {[%emt 0:00:50]} 22. Ne3 {[%emt 0:00:03]} Qd6 {[%emt 0:00:11]} 23. Nd2 {[%emt 0:01:06]} Nf8 {[%emt 0:02:53]} 24. Nd5 {[%emt 0:00:29]} Bf5 {[%emt 0:00:03]} 25. Nxf6+ {[%emt 0:09:36]} Qxf6 {[%emt 0:00:02]} 26. Qe3 {[%emt 0:00:02]} Qg5 {[%emt 0:03:20]} 27. Bd5 {[%emt 0:00:50]} Kg7 {[%emt 0:00:56]} 28. Nb3 {[%emt 0:00:33]} Qxe3 {[%emt 0:00:18]} 29. Rxe3 {[%emt 0:00:02]} Nd7 {[%emt 0:00:08]} 30. Rae1 {[%emt 0:00:27]} f6 {[%emt 0:00:59]} 31. d4 {[%emt 0:00:44]} cxd4 {[%emt 0:00:40]} 32. Nxd4 {[%emt 0:00:02]} Bh3 {[%emt 0:00:10]} 33. f4 {[%emt 0:00:35]} Kf8 {[%emt 0:02:21]} 34. Nf3 {[%emt 0:00:05]} b6 {[%emt 0:05:29]} 35. fxe5 {[%emt 0:01:07]} fxe5 {[%emt 0:00:42]} 36. axb6 {[%emt 0:02:26]} Rxb6 {[%emt 0:00:20]} 37. Bc6 {[%emt 0:00:27]} Re7 {[%emt 0:00:34]} 38. Bxd7 {[%emt 0:00:33]} Rxd7 {[%emt 0:00:51]} 39. Nxe5 {[%emt 0:00:03]} Rd4 {[%emt 0:00:01]} 40. Rf3+ {[%emt 0:01:03]} Kg8 {[%emt 0:00:41]} 41. Rd3 {[%emt 0:01:57]} Rxd3 {[%emt 0:00:41]} 42. Nxd3 {[%emt 0:00:01]} a6 {[%emt 0:00:03]} 43. Nf4 {[%emt 0:00:01]} Bf5 {[%emt 0:01:13]} 44. Nd5 {[%emt 0:00:02]} Rb7 {[%emt 0:00:40]} 45. bxa6 {[%emt 0:00:23]} Ra7 {[%emt 0:00:02]} 46. Ne7+ {[%emt 0:00:05]} Kf7 {[%emt 0:00:04]} 47. Nxf5 {[%emt 0:00:01]} gxf5 {[%emt 0:00:01]} 48. Ra1 {[%emt 0:00:01]} 1-0

[Event "14th Danzhou Super GM 2023"]
[Site "Danzhou"]
[Date "2023.11.16"]
[Round "2.3"]
[White "Jumabayev, Rinat"]
[Black "Ma, Qun"]
[Result "0-1"]
[ECO "E04"]
[WhiteElo "2588"]
[BlackElo "2653"]
[Annotator "TA"]
[PlyCount "122"]
[EventDate "2023.11.16"]
[EventType "tourn"]
[EventCountry "CHN"]
[SourceTitle "playchess.com"]
[Source "ChessBase"]
[SourceQuality "1"]
[TimeControl "2700+10"]

{[%evp 11,122,15,22,8,11,0,0,-10,0,0,0,0,-24,-17,-12,-22,-14,-28,-10,-10,-15,-14,-9,-11,-9,-45,-37,-42,-12,-36,-3,-100,-17,-52,-20,-55,-45,-84,-80,-87,-87,-91,-89,-92,-85,-85,-85,-62,-41,-47,-44,-56,-45,-75,-50,-58,-37,-108,0,0,65,65,78,10,20,0,67,0,0,0,0,-64,-64,-193,-194,-196,-192,-187,-165,-168,-180,-158,-127,-308,-281,-278,-6,-174,-142,-206,-131,-1003,-977,-927,-890,-1414,0,-194,-102,-976,-798,-935,-1051,-1017,-984,-877,-800,-1416,-1414,-1232,-1031,-1662,-1571]} 1. d4 {[%emt 0:00:02]} Nf6 {[%emt 0:00:33]} 2. c4 {[%emt 0:00:15]} e6 {[%emt 0:00:02]} 3. Nf3 {[%emt 0:00:01]} d5 {[%emt 0:00:02]} 4. g3 {[%emt 0:00:02]} dxc4 {[%emt 0:00:21]} 5. Bg2 {[%emt 0:00:02]} Bb4+ {[%emt 0:00:06]} 6. Bd2 {[%emt 0:00:05]} a5 {[%emt 0:00:02]} 7. Qc2 {[%emt 0:00:58]} Bxd2+ {[%emt 0:00:18]} 8. Nbxd2 {[%emt 0:00:07]} b5 {[%emt 0:01:22]} 9. a4 {[%emt 0:01:41] The position is equal.} c6 {[%emt 0:00:03]} 10. O-O {[%emt 0:00:50]} O-O {[%emt 0:02:19]} 11. Ne5 {[%emt 0:01:22]} Nd5 {[%emt 0:02:22]} (11... Qxd4 12. Nxc6 Nxc6 13. Bxc6 $16) 12. b3 {[%emt 0:00:02]} f6 {[%emt 0:01:14]} 13. Nef3 $1 {[%emt 0:00:15]} ({Of course not} 13. bxc4 Nb4 14. Qe4 fxe5 $17) 13... c3 {[%emt 0:03:02]} 14. e4 $1 {[%emt 0:00:05]} b4 {[%emt 0:04:49]} (14... cxd2 {keeps more tension.} 15. exd5 cxd5 16. axb5 Qb6) 15. exd5 {[%emt 0:00:15]} cxd5 {[%emt 0:00:02]} 16. Nb1 {[%emt 0:00:36]} Bd7 {[%emt 0:04:28][%mdl 1024] Black has compensation.} 17. Re1 {[%emt 0:00:11]} Nc6 {[%emt 0:02:05]} 18. Ra2 {[%emt 0:01:56]} (18. Nxc3 {simplifies} bxc3 19. Qxc3 Rc8 20. Rac1) 18... Rc8 {[%emt 0:03:16]} 19. Qd1 {[%emt 0:00:23]} Qe8 {[%emt 0:00:55]} 20. Rae2 {[%emt 0:01:34]} Qh5 {[%emt 0:00:25]} 21. Re3 {[%emt 0:02:57]} (21. Rc2 $11 {remains equal.}) 21... Ne7 {[%emt 0:01:44]} (21... e5 $1 $17 {[%cal Re5e4] ...e4 is the strong threat.} 22. dxe5 d4) 22. Qc1 {[%emt 0:03:00][%cal Rb1c3]} Nf5 {[%emt 0:03:37]} 23. Rd3 {[%emt 0:00:07][%cal Rb1c3]} Rc6 {[%emt 0:00:52]} 24. Re2 {[%emt 0:20:14]} Rfc8 {[%emt 0:00:20] Black has more active pieces.} 25. h3 {[%emt 0:01:07]} Qh6 {[%emt 0:03:49]} 26. Rc2 {[%emt 0:02:13]} Be8 {[%emt 0:03:34]} ({Much weaker is} 26... Qxc1+ $6 27. Rxc1 Be8 28. g4 $15) 27. g4 {[%emt 0:00:28]} Qxc1+ {[%emt 0:00:35]} 28. Rxc1 {[%emt 0:00:02]} Ne7 {[%emt 0:01:53]} 29. Re3 {[%emt 0:00:30]} Bg6 {[%emt 0:01:38]} 30. Bf1 {[%emt 0:00:20]} Kf7 {[%emt 0:01:20]} 31. Bb5 {[%emt 0:00:13]} R6c7 {[%emt 0:00:01]} 32. Ba6 {[%emt 0:03:38]} Ra8 {[%emt 0:00:01]} 33. Bb5 {[%emt 0:00:11]} Be4 {[%emt 0:01:02]} 34. Be2 {[%emt 0:01:37]} (34. Ne1 $15) 34... g5 {[%emt 0:00:31]} (34... Bxf3 $17 35. Rxf3 Rd8) 35. Nbd2 $11 {[%emt 0:00:17][%mdl 64] Pin} Bxf3 {[%emt 0:01:42]} (35... Bg6 $11) 36. Nxf3 $14 {[%emt 0:00:11]} Ng6 {[%emt 0:00:08] [#]} 37. Bd3 {[%emt 0:02:38]} (37. h4 $1 $16) 37... Nf4 $11 {[%emt 0:00:07]} 38. Ne1 {[%emt 0:00:26]} Re8 {[%emt 0:00:32]} (38... h5 $11) 39. Bb5 {[%emt 0:00:16]} (39. Ng2 $14) 39... Rh8 {[%emt 0:00:12]} 40. Nd3 {[%emt 0:00:25]} h5 {[%emt 0:00:01]} 41. Nxf4 {[%emt 0:00:16]} (41. Rce1 $1 $11) 41... gxf4 $15 {[%emt 0:00:02]} 42. Re2 {[%emt 0:00:08]} (42. Rd3 $15) 42... hxg4 {[%emt 0:00:12]} 43. hxg4 {[%emt 0:00:01]} f3 {[%emt 0:00:23]} 44. Re3 {[%emt 0:00:17]} Rh4 {[%emt 0:00:03]} 45. Rxf3 {[%emt 0:00:02]} Rxg4+ {[%emt 0:00:01]} 46. Kf1 {[%emt 0:00:02]} Rxd4 {[%emt 0:00:03] Strongly threatening ...e5.} 47. Bd3 $2 {[%emt 0:00:05]} (47. Rd3 $17 Rh4 48. Ke2) 47... Rh4 $19 {[%emt 0:00:28]} 48. Ke2 {[%emt 0:00:23]} f5 $2 {[%emt 0:00:10]} (48... e5 $19 {White must now prevent ...e4.} 49. Bf5 e4) 49. Bc2 {[%emt 0:00:19]} (49. Rg3 $11) 49... Kf6 {[%emt 0:00:04] ...Rg7 would be deadly.} 50. Rg1 {[%emt 0:00:05] [#]} (50. Rg3 $17 {was the only defense.}) 50... Rg7 $1 {[%emt 0:00:21]} 51. Rfg3 {[%emt 0:00:22][%mdl 8192]} (51. Rxg7 $17 Kxg7 52. Rd3) 51... Rxg3 {[%emt 0:00:06]} 52. Rxg3 {[%emt 0:00:00][%mdl 4096] Endgame KRB-KR} Rd4 {[%emt 0:00:02]} 53. Rd3 {[%emt 0:00:15] Prevents Rd2+.} Rh4 $2 {[%emt 0:00:06]} ({Black should play} 53... Rxd3 $19 54. Kxd3 Kg5) 54. Rd1 {[%emt 0:00:08]} (54. Rg3 $1 $11 {and White has nothing to worry.}) 54... d4 {[%emt 0:00:12]} ({Black should try} 54... Ke5 $19 55. Rg1 Rh5) 55. Rg1 $2 {[%emt 0:00:12][%mdl 8192]} (55. Kf3 $17) 55... e5 {[%emt 0:00:02] Black is clearly winning.} 56. Kd3 {[%emt 0:00:10]} Rh2 {[%emt 0:00:13]} 57. Rf1 {[%emt 0:00:03]} Kg5 {[%emt 0:00:17]} 58. Kc4 {[%emt 0:00:01]} Kf4 {[%emt 0:00:01]} 59. Kd5 {[%emt 0:00:01]} Rh8 {[%emt 0:00:17]} 60. Rd1 {[%emt 0:00:35]} Rd8+ {[%emt 0:00:23]} 61. Kc4 {[%emt 0:00:01]} e4 {[%emt 0:00:12] Weighted Error Value: White=0.76/Black=0.24 (precise)} 0-1

[Event "14th Danzhou Super GM 2023"]
[Site "Danzhou"]
[Date "2023.11.16"]
[Round "2.4"]
[White "Xu, Xiangyu"]
[Black "Bai, Jinshi"]
[Result "1/2-1/2"]
[ECO "D79"]
[WhiteElo "2623"]
[BlackElo "2585"]
[Annotator "TA"]
[PlyCount "73"]
[EventDate "2023.11.16"]
[EventType "tourn"]
[EventCountry "CHN"]
[SourceTitle "playchess.com"]
[Source "ChessBase"]
[SourceQuality "1"]
[TimeControl "2700+10"]

{[%evp 25,73,18,25,0,6,0,4,4,19,19,47,46,41,37,56,12,12,13,22,0,0,0,0,0,0,0,0,0,0,0,0,0,0,0,0,0,0,0,0,0,0,0,0,0,0,0,0,0,0,0]} 1. d4 {[%emt 0:00:04]} d5 {[%emt 0:00:24]} 2. c4 {[%emt 0:00:03]} c6 {[%emt 0:00:13]} 3. Nf3 {[%emt 0:01:20]} Nf6 {[%emt 0:00:36]} 4. g3 {[%emt 0:01:35]} g6 {[%emt 0:02:38]} 5. Bg2 {[%emt 0:00:09]} Bg7 {[%emt 0:00:03]} 6. cxd5 {[%emt 0:05:57]} cxd5 {[%emt 0:00:06]} 7. O-O {[%emt 0:00:05]} O-O {[%emt 0:01:49]} 8. Ne5 {[%emt 0:00:06]} Ng4 {[%emt 0:03:20]} 9. Nf3 {[%emt 0:02:29]} Nf6 {[%emt 0:00:55]} 10. Nc3 {[%emt 0:00:04]} Ne4 {[%emt 0:00:35]} 11. Ne5 {[%emt 0:01:41]} Bf5 {[%emt 0:03:46]} 12. Bf4 {[%emt 0:02:42]} Nc6 {[%emt 0:00:15]} 13. Nxc6 {[%emt 0:01:52] 13.Rc1 is the modern continuation.} bxc6 {[%emt 0:00:05]} 14. Qa4 {[%emt 0:00:07] D79: Fianchetto Grünfeld: Symmetrical Variation (6 0-0 c6 7 cxd5 cxd5).} Qb6 {[%emt 0:03:05][%csl LRb2,LRd4]} 15. e3 {[%emt 0:12:37]} Nxc3 {[%emt 0:05:54]} 16. bxc3 {[%emt 0:00:04] [#]} Bd3 $146 {[%emt 0:01:47]} ({Predecessor:} 16... Rfc8 17. c4 Qd8 18. Rfc1 e6 19. h4 h5 20. c5 Qe8 21. Bd6 e5 22. Re1 Qe6 23. e4 dxe4 24. Bxe4 Bxe4 25. Rxe4 {1-0 Carlsen,M (2839)-Vidit,S (2716) Chess.com Speed Chess blitz 2023 (1.18)}) 17. Rfd1 {[%emt 0:01:33]} Qa6 {[%emt 0:01:54]} 18. Qxa6 {[%emt 0:01:09]} Bxa6 {[%emt 0:00:02]} 19. Rab1 {[%emt 0:00:47]} Rfe8 {[%emt 0:00:38]} 20. Bc7 {[%emt 0:01:47]} Rec8 {[%emt 0:01:46] The position is equal.} 21. Ba5 {[%emt 0:01:18]} e6 {[%emt 0:00:29]} 22. Bb4 {[%emt 0:00:30]} Bf8 {[%emt 0:00:04]} 23. Bxf8 {[%emt 0:00:08]} Kxf8 {[%emt 0:00:01]} 24. Bf1 {[%emt 0:00:07]} Bxf1 {[%emt 0:00:06]} 25. Kxf1 $11 {[%emt 0:00:04][%mdl 4096] Endgame KRR-KRR} Rab8 {[%emt 0:00:18]} 26. Rb3 {[%emt 0:00:14]} Rxb3 {[%emt 0:00:20]} 27. axb3 {[%emt 0:00:06] KR-KR} c5 {[%emt 0:00:05]} 28. Ra1 {[%emt 0:00:13]} cxd4 {[%emt 0:00:12]} 29. cxd4 {[%emt 0:00:03]} Rc3 {[%emt 0:00:06]} 30. Rxa7 {[%emt 0:00:09]} Rxb3 {[%emt 0:00:02]} 31. h4 {[%emt 0:00:06]} h5 {[%emt 0:00:07]} 32. Kg2 {[%emt 0:00:05]} Rb2 {[%emt 0:00:15]} 33. Rc7 {[%emt 0:00:08]} Ra2 {[%emt 0:00:08]} 34. Rd7 {[%emt 0:00:05]} Ke8 {[%emt 0:00:06]} 35. Rc7 {[%emt 0:00:03]} Kf8 {[%emt 0:00:02]} 36. Rd7 {[%emt 0:00:02]} Ke8 {[%emt 0:00:04]} 37. Rc7 {[%emt 0:00:03] Weighted Error Value: White=0.05 (flawless) /Black=0.04 (flawless)} 1/2-1/2

[Event "14th Danzhou Super GM 2023"]
[Site "Danzhou"]
[Date "2023.11.17"]
[Round "3.1"]
[White "Bai, Jinshi"]
[Black "Bu, Xiangzhi"]
[Result "1-0"]
[ECO "E04"]
[WhiteElo "2585"]
[BlackElo "2677"]
[Annotator "TA"]
[PlyCount "145"]
[EventDate "2023.11.17"]
[EventCountry "CHN"]
[SourceTitle "playchess.com"]
[Source "ChessBase"]
[SourceQuality "1"]
[TimeControl "2700+10"]

{[%evp 14,145,-10,0,0,0,0,0,0,0,0,0,0,0,0,3,12,19,17,18,18,10,81,82,88,110,89,93,96,108,133,133,123,135,208,166,192,189,252,247,254,256,1140,1148,1181,1176,1242,950,906,623,613,233,233,233,319,307,319,305,272,118,118,144,144,145,111,6,8,0,0,0,0,0,0,0,0,0,0,0,0,0,0,0,0,0,0,0,0,0,0,0,0,0,0,0,0,0,0,0,0,0,0,0,0,0,0,0,0,0,0,0,0,0,12829,12827,12835,12835,12837,12838,12835,12834,12840,12841,12841,12841,12842,12842,12843,12843,12843,12843,12845,12845,27999,27999]} 1. d4 {[%emt 0:00:04]} Nf6 {[%emt 0:00:04]} 2. c4 {[%emt 0:00:05]} e6 {[%emt 0:00:02]} 3. Nf3 {[%emt 0:00:12]} d5 {[%emt 0:00:17]} 4. g3 {[%emt 0:00:16]} dxc4 {[%emt 0:00:48]} 5. Bg2 {[%emt 0:00:00]} Nc6 {[%emt 0:00:25]} 6. O-O {[%emt 0:00:10]} Rb8 {[%emt 0:00:03]} 7. Nc3 {[%emt 0:00:07]} b5 {[%emt 0:00:03]} 8. Ne5 {[%emt 0:00:22]} Nxe5 {[%emt 0:00:02] E04: Open Catalan: 5 Nf3.} (8... Nxd4 $2 9. e3 $18) 9. dxe5 {[%emt 0:00:02]} Nd7 {[%emt 0:00:02]} 10. Qc2 {[%emt 0:00:03] White wants to play Bc6.} Bb7 {[%emt 0:00:24] Dodges Bc6. The position is equal.} 11. Bxb7 {[%emt 0:00:17]} Rxb7 {[%emt 0:00:02]} 12. Rd1 {[%emt 0:00:30]} Qc8 {[%emt 0:00:02]} 13. a4 {[%emt 0:00:26]} b4 {[%emt 0:00:51]} (13... Nxe5 14. axb5 Bd6 15. Be3 $16) 14. Ne4 {[%emt 0:00:50]} c3 {[%emt 0:01:21]} (14... Nxe5 15. Bf4 b3 16. Qc1 $16 (16. Qc3 Ng6 $16)) (14... c5 $5 {[%cal Rc4c3]}) 15. Rb1 {[%emt 0:00:47]} cxb2 {[%emt 0:05:16] [#]} 16. Bh6 $146 {[%emt 0:00:16][%cal Oh6g7]} ({Predecessor:} 16. Bxb2 Be7 17. a5 O-O 18. Qc6 Nb8 19. Qc4 Rd8 20. Rbc1 Rxd1+ 21. Rxd1 Qe8 22. a6 Qb5 23. Nf6+ Kf8 24. Nxh7+ Kg8 25. Nf6+ Bxf6 26. exf6 Qxc4 27. Rd8+ {1-0 Novozhilov,S (1976)-Bobkov,V (2341) Cheliabinsk Panchenko Memorial op-A 2021 (10)}) 16... b3 {[%emt 0:05:45]} (16... Nxe5 $2 17. Bxg7 Bxg7 18. Nd6+ (18. Rxb2 $2 O-O $19) 18... Kd8 19. Nxc8+ Kxc8 20. Rxb2 $18) 17. Qc3 {[%emt 0:00:47][%cal Oh6g7]} Bb4 {[%emt 0:00:37] [#]} (17... gxh6 $2 18. Rxd7 Bg7 19. Nd6+ Kxd7 20. Nxc8 Kxc8 21. Rxb2 $18) (17... Rb8 $1 $11 {keeps the balance.}) 18. Nd6+ $1 $16 {[%emt 0:00:57][%mdl 64] Double Attack} Kf8 {[%emt 0:03:10]} (18... cxd6 $2 19. Qxc8+ Ke7 20. exd6+ Bxd6 21. Bg5+ f6 22. Qxh8 $18) (18... Bxd6 19. exd6) 19. Qxb4 {[%emt 0:02:16] White is much more active. The black rooks are badly placed.} cxd6 {[%emt 0:00:17]} 20. Qxd6+ $40 {[%emt 0:00:04][%mdl 128] Black is in trouble.} Kg8 {[%emt 0:00:01]} 21. Be3 {[%emt 0:05:04]} Qc2 {[%emt 0:09:03]} 22. Qd4 {[%emt 0:07:24]} h5 {[%emt 0:00:26]} (22... Qxe2 $2 23. Qe4 (23. Rxb2 Qa6 $16) 23... Rb8 24. Rxd7 $18) 23. Rxb2 {[%emt 0:00:15]} Qf5 {[%emt 0:00:06]} (23... Qc7 $16 {was called for.}) 24. Qc4 $1 $18 {[%emt 0:05:10] Qc8+ would be deadly.} Qxe5 {[%emt 0:12:08]} 25. Rxb3 {[%emt 0:06:45]} Rxb3 {[%emt 0:02:47]} (25... Qc7 {is a better defense.} 26. Qxc7 Rxc7) 26. Qxb3 {[%emt 0:00:05]} Nb6 {[%emt 0:00:10]} 27. Qc2 {[%emt 0:07:51][%cal Rd1d8]} (27. Rd8+ Kh7 28. Bxb6 axb6 29. Qb1+ (29. Qxb6 Rxd8 30. Qxd8 Qa1+ 31. Kg2 Qxa4 $11) 29... g6 $16) 27... f5 $2 {[%emt 0:04:50] Black is weak on the dark squares} (27... Qf5 28. Qxf5 exf5) 28. Rd8+ {[%emt 0:02:07]} Kh7 {[%emt 0:00:02]} 29. Bd4 {[%emt 0:00:02]} Qe4 {[%emt 0:00:24]} 30. Qxe4 {[%emt 0:05:24]} fxe4 {[%emt 0:00:01]} 31. Rxh8+ {[%emt 0:00:01]} Kxh8 {[%emt 0:00:01][%mdl 4096] Endgame KB-KN} 32. a5 {[%emt 0:00:19]} (32. Bxb6 axb6 33. Kf1) 32... Nc8 {[%emt 0:00:42] [#]} 33. g4 $1 {[%emt 0:00:55][%mdl 512]} Kh7 {[%emt 0:00:09]} (33... hxg4 34. Kg2) 34. gxh5 {[%emt 0:00:03]} a6 {[%emt 0:00:05]} 35. Bc5 {[%emt 0:00:16] Wards off Nd6} Kh6 {[%emt 0:00:01]} 36. Kg2 {[%emt 0:00:15]} (36. Kf1 $1 $18 {[%cal Rf1e1] and the rest is easy.}) 36... Kxh5 $16 {[%emt 0:00:00]} 37. Kg3 {[%emt 0:00:01] Black must now prevent Kf4.} Kg5 {[%emt 0:00:02]} 38. h4+ {[%emt 0:00:32]} Kf5 {[%emt 0:00:02] [#]} 39. h5 {[%emt 0:00:10]} (39. f3 $1 $16 {[%cal Rf3e4] Hoping for fxe4+.} e3 40. f4 (40. Bxe3 Nd6 $16)) 39... Kg5 $1 $11 {[%emt 0:00:26]} 40. e3 {[%emt 0:00:28]} e5 $1 {[%emt 0:00:26]} 41. Bf8 {[%emt 0:00:09]} Kxh5 {[%emt 0:00:21]} 42. Bxg7 {[%emt 0:00:02]} Kg5 {[%emt 0:00:05]} 43. Bxe5 {[%emt 0:00:11]} Ne7 {[%emt 0:00:08]} 44. Bc7 {[%emt 0:00:17] Strongly threatening Bd8.} Nc6 {[%emt 0:00:20] Inhibits Bd8+.} 45. Bb6 {[%emt 0:00:09]} Ne5 {[%emt 0:00:07]} 46. Bc7 {[%emt 0:00:03]} Nc6 {[%emt 0:00:01]} 47. Kh3 {[%emt 0:00:03]} Kh5 {[%emt 0:00:17]} 48. Bb6 {[%emt 0:00:02]} Kg5 {[%emt 0:00:01]} 49. Kg3 {[%emt 0:00:13]} Ne5 {[%emt 0:00:01]} 50. Bd4 {[%emt 0:00:11]} Nc6 {[%emt 0:00:09]} 51. Bc3 {[%emt 0:00:01]} Ne7 {[%emt 0:00:06]} 52. Be5 {[%emt 0:00:12]} Nf5+ {[%emt 0:00:06]} 53. Kh3 {[%emt 0:00:02]} Ne7 {[%emt 0:00:03]} 54. Bc7 {[%emt 0:00:07]} Nd5 {[%emt 0:00:10]} 55. Bd8+ {[%emt 0:00:06]} Kf5 {[%emt 0:00:02]} 56. Kh4 {[%emt 0:00:12]} Nb4 {[%emt 0:00:06]} 57. Kh5 {[%emt 0:00:11]} Nc6 {[%emt 0:00:17]} 58. Bc7 {[%emt 0:00:05]} Nb4 {[%emt 0:00:06]} 59. Kh6 {[%emt 0:00:35]} Nd5 {[%emt 0:00:58]} 60. Bd6 {[%emt 0:00:02]} Kg4 {[%emt 0:00:10]} 61. Kg6 {[%emt 0:00:02]} Nc3 {[%emt 0:00:12]} 62. Kf6 {[%emt 0:00:11] Threatens to win with Ke5.} Nd1 $2 {[%emt 0:00:04][%mdl 8192]} (62... Kf3 $11) 63. Bg3 $18 {[%emt 0:00:05]} Nb2 {[%emt 0:00:12]} 64. Ke5 {[%emt 0:00:03]} Kf3 {[%emt 0:00:04]} 65. Kd4 {[%emt 0:00:18]} Nd3 {[%emt 0:00:03]} 66. Bh4 {[%emt 0:00:08]} Nb4 {[%emt 0:00:15] [#]} 67. Kc5 $1 {[%emt 0:00:05]} Nd3+ {[%emt 0:00:09]} 68. Kb6 {[%emt 0:00:10]} Nb4 {[%emt 0:00:20]} 69. Bg3 {[%emt 0:00:26]} Ke2 {[%emt 0:00:07]} 70. Bd6 {[%emt 0:00:11][%mdl 64] Deflection} Nd3 {[%emt 0:00:08]} 71. Kxa6 {[%emt 0:00:06]} Kxf2 {[%emt 0:00:02]} 72. Kb5 {[%emt 0:00:15]} Kxe3 {[%emt 0:00:05]} 73. a6 {[%emt 0:00:01] Excellently played by Bai!   Weighted Error Value: White=0.20 (precise) /Black=0.09 (flawless)} 1-0